bitfinex/quotes_SOLUSD_20250718
["timestamp","ask_amount","ask_price","bid_price","bid_amount"]
[1752824984836,28.9,182.91,182.88,7.33197091]
[1752824985030,29.58,182.91,182.88,7.33197091]
[1752824985226,0.68,182.9,182.88,7.33197091]
[1752824985423,0.68,182.89,182.88,7.33197091]
[1752824985825,31.2056,182.91,182.88,7.33197091]
[1752824986137,0.68,182.9,182.88,7.33197091]
[1752824986319,0.68,182.89,182.87,0.03]
[1752824986524,24.11665488,182.88,182.83,0.03]
[1752824986733,7.33197091,182.84,182.83,0.03]
[1752824986911,14.44321152,182.84,182.82,0.03]
[1752824987115,29.58,182.83,182.82,0.03]
[1752824987336,36.91197091,182.83,182.82,0.03]
[1752824989538,42.38153279,182.83,182.82,0.03]
[1752824989739,36.91197091,182.83,182.82,0.03]
[1752824990825,29.58,182.83,182.82,0.03]
[1752824991029,1.6419,182.84,182.82,0.03]
[1752824991233,28.88,182.83,182.82,0.03]
[1752824991424,29.58,182.83,182.82,0.03]
[1752824993037,29.6,182.83,182.82,0.03]
[1752824993443,36.93197091,182.83,182.82,0.03]
[1752824994532,29.6,182.83,182.82,0.03]
[1752824994722,0.7,182.83,182.82,0.03]
[1752824994919,29.58,182.83,182.82,0.03]
[1752824995747,1.6419,182.84,182.82,0.03]
[1752824995938,28.88,182.83,182.82,0.03]
[1752824996242,29.58,182.83,182.82,0.03]
[1752824998323,7.1256,182.86,182.82,7.36197091]
[1752824998538,0.7,182.88,182.85,7.33197091]
[1752824998843,29.58,182.87,182.84,7.33197091]
[1752824999051,29.58,182.87,182.83,7.33197091]
[1752824999052,0.7,182.86,182.83,7.33197091]
[1752824999231,36.91197091,182.85,182.82,0.03]
[1752824999627,0.7,182.84,182.82,0.03]
[1752824999846,28.88,182.83,182.82,0.03]
[1752825000341,36.91197091,182.83,182.82,0.03]
[1752825000843,53.69665488,182.83,182.82,0.03]
[1752825001137,60.83001676,182.83,182.79,0.03]
[1752825001356,24.11665488,182.8,182.79,0.03]
[1752825001520,52.99665488,182.8,182.79,0.03]
[1752825001717,53.69665488,182.8,182.79,0.03]
[1752825002220,29.58,182.8,182.79,0.03]
[1752825003550,42.38243042,182.8,182.79,0.03]
[1752825003937,36.91197091,182.8,182.79,0.03]
[1752825004138,42.38243042,182.8,182.79,0.03]
[1752825004538,36.91197091,182.8,182.79,0.03]
[1752825004728,29.58,182.8,182.79,0.03]
[1752825005648,1.6638,182.83,182.79,7.36197091]
[1752825005847,28.88,182.82,182.79,0.24]
[1752825006148,28.88,182.82,182.79,0.03]
[1752825006334,28.88,182.83,182.8,0.21]
[1752825006744,28.88,182.83,182.81,0.21]
[1752825007151,28.88,182.83,182.82,11.7446118]
[1752825007453,28.88,182.85,182.83,5.46956188]
[1752825007752,28.88,182.86,182.84,11.9546118]
[1752825008046,0.06,182.88,182.85,11.9546118]
[1752825008258,28.94,182.88,182.87,11.7446118]
[1752825008946,0.06,182.88,182.87,11.9546118]
[1752825009549,0.06,182.88,182.87,17.2129773]
[1752825012433,0.06,182.88,182.87,17.4229773]
[1752825014547,0.06,182.88,182.87,5.4683655]
[1752825014850,0.06,182.88,182.87,17.2129773]
[1752825016654,0.76,182.88,182.83,5.46956188]
[1752825016878,0.7,182.87,182.85,11.7446118]
[1752825017545,28.92,182.88,182.86,11.7446118]
[1752825017757,28.92,182.88,182.87,11.7446118]
[1752825018351,29.62,182.88,182.84,146.4]
[1752825018543,0.7,182.87,182.85,11.7446118]
[1752825018851,0.7,182.86,182.84,146.4]
[1752825019157,12.4446118,182.86,182.8,11.7446118]
[1752825019382,11.7446118,182.83,182.79,0.03]
[1752825019557,28.86,182.82,182.79,0.03]
[1752825019866,29.56,182.82,182.79,0.03]
[1752825020078,0.7,182.81,182.79,0.03]
[1752825020436,28.86,182.82,182.8,11.7446118]
[1752825020668,28.86,182.82,182.8,17.21483698]
[1752825020877,28.86,182.82,182.8,5.47022518]
[1752825021250,28.86,182.82,182.8,17.21483698]
[1752825021893,28.86,182.82,182.8,5.47022518]
[1752825022047,28.86,182.82,182.81,11.7446118]
[1752825022252,28.86,182.84,182.81,11.7446118]
[1752825022453,28.86,182.84,182.83,11.7446118]
[1752825022684,29.56,182.86,182.83,17.21409864]
[1752825022884,0.7,182.85,182.82,17.21445929]
[1752825023183,0.7,182.84,182.82,17.21445929]
[1752825023353,0.7,182.83,182.8,11.7446118]
[1752825023557,0.7,182.83,182.81,11.7446118]
[1752825023947,46.07331617,182.86,182.8,11.7446118]
[1752825024270,0.7,182.82,182.8,11.7446118]
[1752825024852,0.7,182.84,182.8,17.21499557]
[1752825025068,0.7,182.83,182.8,11.7446118]
[1752825025275,0.7,182.83,182.8,17.21503995]
[1752825025579,0.7,182.83,182.81,11.7446118]
[1752825025958,0.7,182.83,182.8,11.7446118]
[1752825026158,0.7,182.83,182.81,11.7446118]
[1752825026350,29.56,182.86,182.82,11.7446118]
[1752825026550,0.7,182.85,182.83,11.7446118]
[1752825027287,0.7,182.85,182.82,5.46971944]
[1752825027488,0.7,182.85,182.79,26.03]
[1752825027666,0.7,182.85,182.81,11.7446118]
[1752825027867,0.7,182.85,182.8,26.0]
[1752825028067,34.32869989,182.86,182.8,26.0]
[1752825028289,0.7,182.84,182.82,11.7446118]
[1752825029496,0.7,182.84,182.82,17.21446859]
[1752825030099,0.7,182.84,182.82,11.7446118]
[1752825031296,0.7,182.83,182.82,11.7446118]
[1752825031498,0.7,182.84,182.82,11.7446118]
[1752825032696,0.7,182.83,182.82,11.7446118]
[1752825032882,0.7,182.83,182.8,26.0]
[1752825033089,0.7,182.83,182.81,11.7446118]
[1752825034280,45.64468397,182.86,182.79,0.03]
[1752825034496,0.7,182.82,182.79,0.03]
[1752825034695,0.7,182.82,182.79,11.7746118]
[1752825035102,24.12960472,182.84,182.79,0.03]
[1752825035309,0.7,182.81,182.79,0.03]
[1752825036100,16.78468397,182.82,182.79,0.03]
[1752825036486,17.48468397,182.82,182.79,0.03]
[1752825036797,0.7,182.81,182.79,0.03]
[1752825036998,24.12960472,182.8,182.79,0.03]
[1752825037178,16.78468397,182.8,182.79,0.03]
[1752825037376,17.48468397,182.8,182.79,0.03]
[1752825038599,30.4356,182.81,182.79,7.37492075]
[1752825039006,0.7,182.8,182.79,0.03]
[1752825041611,30.4356,182.81,182.79,0.03]
[1752825041798,0.7,182.8,182.79,0.03]
[1752825042198,17.48468397,182.8,182.79,0.03]
[1752825042805,24.82960472,182.8,182.79,0.03]
[1752825043588,17.48468397,182.8,182.79,0.03]
[1752825045883,30.30006423,182.8,182.79,0.03]
[1752825046101,30.30006423,182.8,182.76,0.03]
[1752825046102,26.0,182.77,182.76,0.03]
[1752825046301,25.65890472,182.75,182.74,0.03]
[1752825046492,54.49890472,182.75,182.74,0.03]
[1752825046815,55.19890472,182.75,182.74,0.03]
[1752825047013,60.67086094,182.75,182.74,0.03]
[1752825047809,55.19890472,182.75,182.74,0.03]
[1752825048010,26.0,182.77,182.74,0.03]
[1752825048011,0.7,182.77,182.74,0.03]
[1752825048315,45.62468397,182.75,182.74,0.03]
[1752825048885,28.84,182.75,182.74,5.50225566]
[1752825049084,28.84,182.75,182.74,12.84717641]
[1752825049312,17.48468397,182.78,182.74,12.84717641]
[1752825049508,28.84,182.77,182.75,7.34492075]
[1752825050293,28.84,182.77,182.76,7.34492075]
[1752825050892,28.84,182.79,182.76,11.75344899]
[1752825051786,28.84,182.79,182.78,11.75344899]
[1752825052209,16.78468397,182.81,182.78,11.75344899]
[1752825052414,45.62468397,182.81,182.8,11.75344899]
[1752825052921,28.84,182.81,182.8,11.75344899]
[1752825053391,28.84,182.81,182.8,17.2239085]
[1752825053591,0.69,182.86,182.8,17.5239085]
[1752825053813,1.5875,182.88,182.8,17.5239085]
[1752825053814,1.5875,182.88,182.85,11.75344899]
[1752825053995,0.06,182.88,182.87,11.75344899]
[1752825054201,30.06,182.88,182.87,11.75344899]
[1752825054440,0.06,182.88,182.84,26.0]
[1752825054617,0.69,182.87,182.84,37.75344899]
[1752825054815,0.69,182.86,182.84,37.75344899]
[1752825054993,0.69,182.85,182.84,11.75344899]
[1752825056129,28.82,182.86,182.84,11.75344899]
[1752825056901,29.51,182.86,182.84,11.75344899]
[1752825058126,0.69,182.85,182.82,11.75344899]
[1752825058428,28.82,182.86,182.81,17.22360926]
[1752825058429,0.69,182.84,182.81,17.22360926]
[1752825058923,0.69,182.84,182.82,11.75344899]
[1752825059121,28.82,182.86,182.82,11.75344899]
[1752825059294,28.82,182.86,182.84,11.75344899]
[1752825059627,0.69,182.85,182.81,151.87016027]
[1752825059802,0.69,182.85,182.81,163.62360926]
[1752825060000,0.69,182.85,182.81,151.87016027]
[1752825060199,0.69,182.84,182.81,5.47016027]
[1752825060401,0.69,182.83,182.81,5.47016027]
[1752825060599,0.69,182.83,182.79,5.47075879]
[1752825060826,16.78468397,182.81,182.74,146.43]
[1752825061026,28.53813296,182.79,182.74,5.50218803]
[1752825061321,12.44344899,182.78,182.74,5.50218803]
[1752825061504,29.51,182.77,182.74,0.03]
[1752825061704,29.51,182.77,182.74,5.5021854]
[1752825061953,28.82,182.76,182.74,17.25563439]
[1752825062227,28.82,182.78,182.74,17.25563439]
[1752825063422,28.53813296,182.75,182.74,0.03]
[1752825063622,57.35813296,182.75,182.74,0.03]
[1752825063822,58.04813296,182.75,182.74,0.03]
[1752825064630,63.52008918,182.75,182.74,0.03]
[1752825065124,63.52008918,182.75,182.73,0.03]
[1752825065330,29.22813296,182.74,182.73,0.03]
[1752825066328,16.78468397,182.72,182.71,0.03]
[1752825066654,57.35813296,182.72,182.71,0.03]
[1752825066932,58.04813296,182.72,182.71,0.03]
[1752825068111,46.29468397,182.72,182.71,0.03]
[1752825069206,29.51,182.72,182.71,0.03]
[1752825070226,17.47468397,182.74,182.71,0.03]
[1752825070439,28.82,182.72,182.71,0.03]
[1752825071134,28.82,182.73,182.71,11.78344899]
[1752825071328,28.82,182.73,182.72,11.75344899]
[1752825071511,28.82,182.73,182.71,11.78344899]
[1752825072225,28.82,182.73,182.69,0.03]
[1752825072226,16.78468397,182.71,182.69,0.03]
[1752825072427,57.35813296,182.7,182.69,0.03]
[1752825072637,58.04813296,182.7,182.69,0.03]
[1752825073138,28.82,182.7,182.69,11.78344899]
[1752825073324,29.51,182.7,182.69,0.03]
[1752825073533,41.26344899,182.7,182.69,0.03]
[1752825073723,58.04813296,182.7,182.69,0.03]
[1752825075039,41.26344899,182.7,182.69,0.03]
[1752825075221,58.04813296,182.7,182.69,0.03]
[1752825075414,63.5215867,182.7,182.69,0.03]
[1752825075826,63.5215867,182.7,182.62,149.1638786]
[1752825075827,16.78468397,182.69,182.62,149.1638786]
[1752825076049,41.26344899,182.68,182.63,11.75344899]
[1752825076353,0.69,182.67,182.63,11.75344899]
[1752825076517,11.75344899,182.64,182.6,0.2]
[1752825076841,29.51,182.63,182.6,0.2]
[1752825077242,0.69,182.62,182.6,0.2]
[1752825077433,28.82,182.62,182.6,11.95344899]
[1752825077639,0.69,182.61,182.6,0.2]
[1752825077940,28.82,182.62,182.6,0.2]
[1752825078128,0.69,182.61,182.6,0.2]
[1752825078525,12.44344899,182.61,182.6,0.2]
[1752825078739,29.10033533,182.61,182.6,0.2]
[1752825078942,40.85378432,182.61,182.6,0.2]
[1752825080546,6.8395,182.61,182.6,0.2]
[1752825080727,29.51,182.61,182.6,0.2]
[1752825081146,28.82,182.61,182.6,0.2]
[1752825081344,41.28344899,182.61,182.6,0.2]
[1752825081558,29.53,182.61,182.6,0.2]
[1752825081743,28.82,182.61,182.6,0.2]
[1752825082245,10.0,182.71,182.6,17.42975236]
[1752825082246,11.75344899,182.68,182.6,17.42975236]
[1752825082543,28.82,182.67,182.63,11.75344899]
[1752825082753,28.82,182.67,182.6,5.67630337]
[1752825082754,1.5133,182.71,182.66,11.75344899]
[1752825082938,1.5133,182.71,182.69,11.75344899]
[1752825082939,28.82,182.7,182.69,11.75344899]
[1752825083126,30.0,182.7,182.69,11.75344899]
[1752825083320,30.0,182.7,182.69,12.14344899]
[1752825083744,28.82,182.73,182.69,12.14344899]
[1752825083929,28.82,182.73,182.72,11.75344899]
[1752825084132,58.82,182.73,182.72,11.75344899]
[1752825084332,58.82,182.73,182.71,5.47315417]
[1752825084543,0.77,182.76,182.72,11.75344899]
[1752825084851,28.82,182.75,182.74,11.75344899]
[1752825085230,28.82,182.75,182.71,5.47315417]
[1752825085632,28.82,182.75,182.73,11.75344899]
[1752825085848,28.82,182.75,182.72,11.75344899]
[1752825086224,28.82,182.74,182.71,5.47315417]
[1752825086429,28.82,182.74,182.73,11.75344899]
[1752825087354,0.06,182.76,182.73,12.14344899]
[1752825087533,0.06,182.76,182.75,37.75344899]
[1752825087738,28.88,182.76,182.75,37.75344899]
[1752825088553,28.88,182.76,182.75,17.22540521]
[1752825088740,28.88,182.76,182.75,11.75344899]
[1752825088936,28.88,182.76,182.71,11.75344899]
[1752825088937,29.59,182.76,182.71,11.75344899]
[1752825089145,0.71,182.75,182.69,5.47375335]
[1752825089458,12.46344899,182.75,182.7,11.75344899]
[1752825089655,11.75344899,182.75,182.7,11.75344899]
[1752825089852,28.82,182.74,182.73,11.75344899]
[1752825091552,28.82,182.74,182.72,31.47285464]
[1752825091739,28.82,182.74,182.72,43.22630363]
[1752825091947,28.82,182.74,182.72,17.22630363]
[1752825092548,28.82,182.74,182.73,11.75344899]
[1752825092855,29.53,182.74,182.71,11.75344899]
[1752825093051,0.71,182.73,182.71,11.75344899]
[1752825093236,0.71,182.73,182.7,17.22661185]
[1752825093753,0.71,182.73,182.71,11.75344899]
[1752825094133,28.82,182.74,182.71,11.75344899]
[1752825094938,28.82,182.74,182.71,17.22659823]
[1752825095144,0.71,182.73,182.71,5.47314924]
[1752825096356,0.71,182.73,182.7,17.22690273]
[1752825096855,0.06,182.76,182.72,11.75344899]
[1752825097059,28.8,182.75,182.71,11.75344899]
[1752825097361,28.8,182.75,182.73,11.75344899]
[1752825097535,28.8,182.75,182.74,11.75344899]
[1752825097735,28.8,182.75,182.74,12.14344899]
[1752825098138,28.8,182.75,182.74,17.61570465]
[1752825098369,28.8,182.75,182.74,17.22570465]
[1752825099333,28.8,182.75,182.74,5.47225566]
[1752825099650,28.8,182.75,182.74,17.22570465]
[1752825100255,28.8,182.75,182.73,31.47250502]
[1752825100429,28.8,182.75,182.73,43.22595401]
[1752825100852,28.8,182.75,182.74,11.75344899]
[1752825102252,28.8,182.75,182.74,17.22570465]
[1752825103148,28.8,182.75,182.74,17.61570465]
[1752825103459,28.8,182.75,182.74,17.22570465]
[1752825103854,29.51,182.75,182.72,11.75344899]
[1752825104159,0.71,182.74,182.71,17.22651568]
[1752825104360,0.71,182.73,182.71,5.47306669]
[1752825104659,16.78468397,182.74,182.66,17.22810134]
[1752825104870,40.55344899,182.73,182.68,11.75344899]
[1752825105445,28.8,182.73,182.69,11.75344899]
[1752825105951,40.55344899,182.73,182.67,11.75344899]
[1752825106262,40.55344899,182.73,182.67,17.22755444]
[1752825106660,0.71,182.72,182.67,17.22755444]
[1752825106860,0.71,182.71,182.67,17.22755444]
[1752825107052,28.8,182.7,182.67,17.22755444]
[1752825108364,28.8,182.7,182.67,17.25755444]
[1752825108664,28.8,182.7,182.67,5.50410545]
[1752825108860,28.8,182.7,182.68,11.75344899]
[1752825109472,28.8,182.7,182.69,11.75344899]
[1752825109970,28.8,182.7,182.68,11.75344899]
[1752825110466,28.8,182.7,182.69,5.47375335]
[1752825112357,28.8,182.7,182.69,17.70720234]
[1752825112657,28.8,182.73,182.69,31.39158572]
[1752825112864,0.06,182.74,182.7,0.48]
[1752825113174,0.06,182.74,182.73,11.75344899]
[1752825114056,0.76,182.74,182.69,165.55813673]
[1752825114367,0.7,182.73,182.7,11.75344899]
[1752825114550,0.7,182.73,182.71,17.22660316]
[1752825115961,0.7,182.73,182.7,17.22683486]
[1752825116387,0.7,182.73,182.71,11.75344899]
[1752825116592,16.84468397,182.74,182.68,11.75344899]
[1752825116880,0.7,182.72,182.68,11.75344899]
[1752825117183,28.8,182.71,182.68,37.75344899]
[1752825117482,29.5,182.71,182.68,37.75344899]
[1752825117858,29.5,182.71,182.68,43.22730368]
[1752825118461,28.8,182.71,182.68,31.47385469]
[1752825118667,28.8,182.71,182.69,11.64914116]
[1752825119185,28.8,182.71,182.7,11.75344899]
[1752825119363,0.06,182.74,182.7,12.23344899]
[1752825119569,0.06,182.74,182.73,37.75344899]
[1752825119771,0.06,182.76,182.73,37.75344899]
[1752825119974,0.06,182.78,182.77,26.0]
[1752825120208,0.06,182.78,182.77,37.75344899]
[1752825120378,0.06,182.78,182.77,38.23344899]
[1752825120990,0.06,182.78,182.77,26.48]
[1752825121186,0.06,182.8,182.79,11.75344899]
[1752825121398,29.54,182.8,182.74,165.55289481]
[1752825121577,0.7,182.79,182.75,11.75344899]
[1752825121768,0.7,182.78,182.72,158.15344899]
[1752825121966,11.75344899,182.76,182.7,11.75344899]
[1752825122169,11.75344899,182.73,182.67,0.03]
[1752825122477,11.75344899,182.69,182.67,0.03]
[1752825122682,28.78,182.68,182.67,0.03]
[1752825122891,58.01813296,182.68,182.67,0.03]
[1752825123977,63.49218594,182.68,182.67,0.03]
[1752825124180,63.49218594,182.68,182.64,0.03]
[1752825124380,16.78468397,182.64,182.6,0.2]
[1752825124679,11.75344899,182.61,182.6,0.2]
[1752825124988,28.53813296,182.61,182.6,0.2]
[1752825125176,29.23813296,182.61,182.6,0.2]
[1752825126800,0.7,182.61,182.6,0.2]
[1752825127388,7.9425,182.6,182.56,0.03]
[1752825127589,41.23344899,182.59,182.56,0.03]
[1752825128079,12.45344899,182.58,182.56,0.03]
[1752825128474,0.7,182.57,182.56,0.03]
[1752825128683,28.78,182.59,182.56,0.03]
[1752825129099,0.7,182.58,182.56,0.03]
[1752825130089,28.78,182.59,182.56,5.50765118]
[1752825130471,28.78,182.59,182.57,11.75344899]
[1752825130699,28.78,182.59,182.58,11.75344899]
[1752825131294,28.8,182.61,182.58,11.75344899]
[1752825131507,28.8,182.61,182.57,11.75344899]
[1752825131796,12.45344899,182.6,182.56,0.03]
[1752825132096,11.75344899,182.59,182.56,0.03]
[1752825132291,28.78,182.58,182.56,0.03]
[1752825132489,29.48,182.58,182.56,0.03]
[1752825133800,28.78,182.58,182.56,0.03]
[1752825134097,12.45344899,182.57,182.56,0.03]
[1752825134288,30.78993296,182.57,182.56,0.03]
[1752825135501,36.84593296,182.57,182.56,0.03]
[1752825135888,16.78468397,182.55,182.54,0.2]
[1752825136192,57.33813296,182.55,182.54,0.2]
[1752825136398,46.28468397,182.55,182.54,0.2]
[1752825136593,58.03813296,182.55,182.54,0.2]
[1752825137984,63.5160842,182.55,182.54,0.2]
[1752825140506,51.76263521,182.55,182.54,0.2]
[1752825140688,58.03813296,182.55,182.54,0.2]
[1752825140889,63.5160842,182.55,182.54,0.2]
[1752825141684,0.7,182.55,182.54,0.2]
[1752825141884,29.5,182.55,182.54,0.2]
[1752825142102,41.25344899,182.55,182.54,0.2]
[1752825142291,63.5160842,182.55,182.54,0.2]
[1752825142498,58.03813296,182.55,182.54,0.2]
[1752825143386,63.5160842,182.55,182.54,0.2]
[1752825143696,58.03813296,182.55,182.54,0.2]
[1752825143902,46.28468397,182.55,182.54,0.2]
[1752825144205,58.03813296,182.55,182.54,0.2]
[1752825145409,63.5160842,182.55,182.54,0.2]
[1752825145590,46.28468397,182.55,182.54,0.2]
[1752825145913,58.03813296,182.55,182.54,0.2]
[1752825146414,63.5160842,182.55,182.54,0.2]
[1752825147916,51.76263521,182.55,182.54,0.2]
[1752825148208,16.78468397,182.54,182.52,0.03]
[1752825148415,16.78468397,182.53,182.52,0.03]
[1752825148587,58.00813296,182.53,182.52,0.03]
[1752825149111,63.48668443,182.53,182.52,0.03]
[1752825150999,5.47915182,182.51,182.43,26.0]
[1752825151198,11.75344899,182.46,182.43,5.48150879]
[1752825151407,28.78,182.45,182.43,5.48150879]
[1752825151710,28.78,182.45,182.44,26.0]
[1752825152035,28.78,182.45,182.43,5.48150879]
[1752825152197,28.78,182.45,182.42,5.48185505]
[1752825153096,28.78,182.45,182.41,19.94674713]
[1752825153416,28.78,182.45,182.41,8.19329814]
[1752825153618,28.78,182.45,182.41,19.94674713]
[1752825154115,0.67,182.44,182.41,2.71121381]
[1752825154316,16.78468397,182.49,182.37,147.14]
[1752825154317,41.22344899,182.43,182.37,0.74]
[1752825154528,40.55344899,182.42,182.37,12.49344899]
[1752825154816,41.22344899,182.42,182.37,0.74]
[1752825155018,41.22344899,182.42,182.37,12.49344899]
[1752825155190,29.47,182.42,182.37,0.74]
[1752825155398,29.47,182.42,182.37,12.49344899]
[1752825155723,28.8,182.42,182.37,17.97673098]
[1752825155925,28.8,182.42,182.37,6.22328199]
[1752825156520,0.67,182.41,182.38,11.75344899]
[1752825156713,28.8,182.4,182.37,0.2]
[1752825156917,28.8,182.4,182.37,2.97439837]
[1752825157428,0.67,182.39,182.37,2.97439837]
[1752825157616,28.8,182.38,182.37,0.2]
[1752825158226,58.00813296,182.38,182.37,0.2]
[1752825158522,16.78468397,182.37,182.32,11.40418703]
[1752825158721,11.75344899,182.33,182.32,11.40418703]
[1752825158922,29.47,182.33,182.32,11.40418703]
[1752825159130,28.8,182.33,182.32,11.40418703]
[1752825159335,12.42344899,182.35,182.32,11.40418703]
[1752825159510,25.00978397,182.38,182.34,11.75344899]
[1752825159709,29.47,182.37,182.32,17.57903901]
[1752825159916,29.20813296,182.36,182.32,14.13892285]
[1752825160117,29.47,182.35,182.32,11.40418703]
[1752825160316,28.8,182.35,182.32,11.40418703]
[1752825160517,0.67,182.34,182.32,11.40418703]
[1752825160731,28.8,182.33,182.32,11.40418703]
[1752825161322,28.8,182.33,182.32,16.88904881]
[1752825161526,28.8,182.33,182.32,32.10857134]
[1752825161726,28.8,182.33,182.32,20.35512235]
[1752825162045,28.8,182.33,182.32,32.10857134]
[1752825163717,28.8,182.33,182.32,45.82072579]
[1752825164439,28.8,182.33,182.32,32.10857134]
[1752825164951,28.8,182.33,182.32,31.41857134]
[1752825165443,28.8,182.33,182.32,14.18026057]
[1752825166825,29.47,182.33,182.32,11.40418703]
[1752825167221,29.47,182.33,182.14,2.85970952]
[1752825167222,41.30256096,182.33,182.14,2.85970952]
[1752825167548,16.78468397,182.28,182.17,13.7232272]
[1752825167715,35.47655354,182.27,182.18,0.69]
[1752825167914,11.75344899,182.24,182.18,0.69]
[1752825168116,11.75344899,182.24,182.17,184.67937805]
[1752825168117,29.5,182.23,182.17,184.17937805]
[1752825168330,16.78468397,182.17,182.05,0.69]
[1752825168530,16.78468397,182.17,181.87,7.9644]
[1752825168531,33.19468397,182.11,182.01,0.69]
[1752825168732,16.78468397,182.09,182.01,0.69]
[1752825168939,0.57,182.12,182.01,0.69]
[1752825168940,29.76,182.08,182.01,0.69]
[1752825169114,16.78468397,182.07,182.01,0.69]
[1752825169316,29.76,182.08,182.05,11.75344899]
[1752825169517,29.76,182.08,181.99,38.42676576]
[1752825169518,29.76,182.08,182.07,11.75344899]
[1752825169718,29.76,182.08,182.07,0.69]
[1752825170119,29.76,182.08,182.07,6.18239303]
[1752825170342,29.76,182.08,182.07,0.69]
[1752825170523,29.76,182.08,182.07,43.93584202]
[1752825170727,0.57,182.16,182.07,26.69]
[1752825171029,28.53813296,182.14,182.08,0.69]
[1752825171235,30.34,182.15,182.08,0.69]
[1752825171410,16.78468397,182.14,182.08,0.69]
[1752825171611,30.68,182.13,182.11,11.75344899]
[1752825171821,30.68,182.12,182.11,12.42344899]
[1752825172125,30.68,182.12,182.11,17.91455767]
[1752825172324,30.68,182.15,182.11,6.16110868]
[1752825172525,1.36912095,182.21,182.14,26.0]
[1752825172738,30.0,182.15,182.14,26.0]
[1752825172921,30.0,182.15,182.14,37.75344899]
[1752825173126,30.0,182.15,182.14,38.42344899]
[1752825173325,30.0,182.15,182.14,26.67]
[1752825173538,30.0,182.15,182.14,38.42344899]
[1752825173740,30.0,182.15,182.14,43.91373119]
[1752825174419,30.0,182.15,182.14,32.1602822]
[1752825174921,16.78468397,182.15,182.12,31.49068856]
[1752825175136,28.53813296,182.15,182.09,0.67]
[1752825175449,29.10813296,182.15,182.08,5.52209138]
[1752825175632,29.10813296,182.15,182.09,11.75344899]
[1752825175820,29.10813296,182.15,182.09,37.75344899]
[1752825176139,16.78468397,182.15,182.1,11.75344899]
[1752825176337,16.78468397,182.15,182.12,11.75344899]
[1752825177543,16.78468397,182.15,182.11,5.49106207]
[1752825177845,16.78468397,182.15,182.11,17.24451106]
[1752825178230,16.78468397,182.15,182.08,11.78344899]
[1752825178231,43.02344899,182.14,182.08,11.78344899]
[1752825178434,30.7,182.14,182.1,11.75344899]
[1752825179028,31.27,182.14,182.09,11.75344899]
[1752825179225,30.7,182.13,182.1,11.75344899]
[1752825180243,16.78468397,182.12,182.08,0.03]
[1752825180435,29.10813296,182.12,182.08,0.03]
[1752825180738,16.78468397,182.1,182.08,0.03]
[1752825180940,64.68992273,182.09,182.08,0.03]
[1752825181140,64.68992273,182.09,181.91,6.1672239]
[1752825181141,16.78468397,182.04,181.91,6.1672239]
[1752825181329,31.2,182.03,181.94,11.75344899]
[1752825181531,16.78468397,182.02,181.93,0.67]
[1752825181842,0.54,182.06,181.93,79.30842975]
[1752825182072,47.44468397,182.05,182.0,11.75344899]
[1752825182222,6.3299,182.02,181.88,2.85778957]
[1752825182425,16.78468397,182.0,181.92,11.75344899]
[1752825182629,16.78468397,181.98,181.91,11.75344899]
[1752825182929,0.54,181.99,181.91,11.75344899]
[1752825182930,30.66,181.97,181.91,11.75344899]
[1752825183242,16.78468397,181.96,181.88,5.49813063]
[1752825183444,16.78468397,181.96,181.93,11.75344899]